fUSD/lending_fUSD_20240331
["ID","MTS","AMOUNT","RATE_DAILY","PERIOD"]
[321116720,1711900341003,-500.0,0.00056712,120]
[321116721,1711900341014,-516.3,0.00056712,120]
[321116722,1711900341023,-2213.16,0.00056712,120]
[321116723,1711900341033,-830.035408,0.00056712,120]
[321116724,1711900341043,-500.0,0.00056712,120]
[321116725,1711900341053,-706.06,0.00056712,120]
[321116726,1711900341063,-151.0,0.00056712,120]
[321116727,1711900341072,-500.0,0.00056712,120]
[321116728,1711900341082,-500.0,0.00056712,120]
[321116729,1711900341092,-500.0,0.00056712,120]
[321116730,1711900341102,-4238.83,0.00056712,120]
[321116731,1711900341111,-1070.8,0.00056712,120]
[321116732,1711900341121,-1153.73,0.00056712,120]
[321116733,1711900341131,-830.035408,0.00056712,120]
[321116734,1711900341141,-500.0,0.00056712,120]
[321116735,1711900341151,-506.91,0.00056712,120]
[321116736,1711900341162,-500.0,0.00056712,120]
[321116737,1711900341172,-500.0,0.00056712,120]
[321116738,1711900341182,-11263.13,0.00056712,120]
[321116739,1711900341192,-500.0,0.00056712,120]
[321116740,1711900341202,-500.0,0.00056712,120]
[321116741,1711900341212,-500.0,0.00056712,120]
[321116742,1711900341222,-500.0,0.00056712,120]
[321116743,1711900341232,-6135.58,0.00056712,120]
[321116744,1711900341241,-211.88718046,0.00056712,120]
[321116745,1711900341251,-500.0,0.00056712,120]
[321116746,1711900341261,-1063.3,0.00056712,120]
[321116747,1711900341272,-500.0,0.00056712,120]
[321116748,1711900341285,-1083.6,0.00056712,120]
[321116749,1711900341295,-1674.93,0.00056712,120]
[321116750,1711900341305,-151.0,0.00056712,120]
[321116751,1711900341315,-500.0,0.00056712,120]
[321116752,1711900341324,-547.37,0.00056712,120]
[321116753,1711900341334,-1968.84,0.00056712,120]
[321116754,1711900341344,-3729.06,0.00056712,120]
[321116755,1711900341354,-500.0,0.00056712,120]
[321116756,1711900341364,-500.0,0.00056712,120]
[321116757,1711900341374,-4646.47,0.00056712,120]
[321116758,1711900341383,-2179.05,0.00056712,120]
[321116759,1711900341394,-16968.39,0.00056712,120]
[321116760,1711900341403,-500.0,0.00056712,120]
[321116761,1711900341414,-29017.57,0.00056712,120]
[321116762,1711900341424,-551.57,0.00056712,120]
[321116763,1711900341665,-584.14,0.00056712,120]
[321116764,1711900341683,-567.81,0.00056712,120]
[321116765,1711900341693,-890.16,0.00056712,120]
[321116766,1711900341703,-3354.8,0.00056712,120]
[321116767,1711900341712,-500.0,0.00056712,120]
[321116768,1711900341722,-911.19,0.00056712,120]
[321116769,1711900341731,-500.0,0.00056712,120]
[321116770,1711900341741,-749.8,0.00056712,120]
[321116771,1711900341751,-770.28,0.00056712,120]
[321116772,1711900341760,-500.0,0.00056712,120]
[321116773,1711900341770,-1117.84,0.00056712,120]
[321116774,1711900341779,-500.0,0.00056712,120]
[321116775,1711900341789,-1829.63,0.00056712,120]
[321116776,1711900341798,-3744.87,0.00056712,120]
[321116777,1711900341808,-500.0,0.00056712,120]
[321116778,1711900341817,-500.0,0.00056712,120]
[321116779,1711900341828,-500.0,0.00056712,120]
[321116780,1711900341838,-500.0,0.00056712,120]
[321116781,1711900341847,-542.88,0.00056712,120]
[321116782,1711900341857,-500.0,0.00056712,120]
[321116783,1711900341867,-1553.34,0.00056712,120]
[321116784,1711900341877,-1915.68,0.00056712,120]
[321116785,1711900341886,-500.0,0.00056712,120]
[321116786,1711900341895,-500.0,0.00056712,120]
[321116787,1711900341905,-500.0,0.00056712,120]
[321116788,1711900341914,-500.0,0.00056712,120]
[321116789,1711900341925,-500.0,0.00056712,120]
[321116790,1711900341934,-500.0,0.00056712,120]
[321116791,1711900341944,-500.0,0.00056712,120]
[321116792,1711900341954,-584.91,0.00056712,120]
[321116793,1711900341965,-1875.4,0.00056712,120]
[321116794,1711900341975,-882.75,0.00056712,120]
[321116795,1711900341984,-500.0,0.00056712,120]
[321116796,1711900341994,-733.42,0.00056712,120]
[321116797,1711900342005,-500.0,0.00056712,120]
[321116798,1711900342014,-500.0,0.00056712,120]
[321116799,1711900342024,-784.97,0.00056712,120]
[321116800,1711900342034,-500.0,0.00056712,120]
[321116801,1711900342043,-2559.61,0.00056712,120]
[321116802,1711900342054,-231.75859994,0.00056712,120]
[321116803,1711900342064,-4029.59,0.00056712,120]
[321116804,1711900342074,-1741.29,0.00056712,120]
[321116805,1711900342084,-500.0,0.00056712,120]
[321116806,1711900342094,-8811.85,0.00056712,120]
[321116807,1711900342104,-612.97,0.00056712,120]
[321116808,1711900342113,-500.0,0.00056712,120]
[321116809,1711900342122,-7506.96,0.00056712,21]
[321116810,1711900342132,-2797.36,0.00056712,120]
[321116811,1711900342142,-500.0,0.00056712,120]
[321116812,1711900342151,-1677.22,0.00056712,120]
[321116813,1711900342161,-1296.66,0.00056712,120]
[321116814,1711900342170,-500.0,0.00056712,120]
[321116815,1711900342179,-966.37,0.00056712,120]
[321116816,1711900342189,-500.0,0.00056712,120]
[321116817,1711900342198,-199.95,0.00056712,120]
[321116818,1711900342208,-500.0,0.00056712,120]
[321116819,1711900342218,-500.0,0.00056712,120]
[321116820,1711900342227,-12461.24,0.00056712,120]
[321116821,1711900342237,-3203.08,0.00056712,120]
[321116822,1711900342247,-500.0,0.00056712,120]
[321116823,1711900342256,-1043.52,0.00056712,120]
[321116824,1711900342266,-4560.05,0.00056712,120]
[321116825,1711900342277,-500.0,0.00056712,120]
[321116826,1711900342289,-500.0,0.00056712,120]
[321116827,1711900342299,-1828.48,0.00056712,120]
[321116828,1711900342310,-500.0,0.00056712,120]
[321116829,1711900342321,-1209.33,0.00056712,120]
[321116830,1711900342331,-868.97,0.00056712,120]
[321116831,1711900342340,-500.0,0.00056712,7]
[321116832,1711900342350,-500.0,0.00056712,120]
[321116833,1711900342361,-596.22,0.00056712,120]
[321116834,1711900342371,-1928.53,0.00056712,120]
[321116835,1711900342381,-500.0,0.00056712,120]
[321116836,1711900342391,-609.97,0.00056712,120]
[321116837,1711900342401,-8356.87,0.00056712,120]
[321116838,1711900342411,-500.0,0.00056712,120]
[321116839,1711900342421,-500.0,0.00056712,120]
[321116840,1711900342431,-1782.7,0.00056712,120]
[321116841,1711900342441,-500.0,0.00056712,120]
[321116842,1711900342451,-525.13,0.00056712,120]
[321116843,1711900342461,-1415.86,0.00056712,120]
[321116844,1711900342470,-1616.02,0.00056712,120]
[321116845,1711900342479,-2311.2,0.00056712,120]
[321116846,1711900342489,-12648.79,0.00056712,120]
[321116847,1711900342499,-2232.12,0.00056712,120]
[321116848,1711900342509,-500.0,0.00056712,120]
[321116849,1711900342519,-1508.33,0.00056712,120]
[321116850,1711900342528,-500.0,0.00056712,120]
[321116851,1711900342537,-500.0,0.00056712,120]
[321116852,1711900342547,-500.0,0.00056712,120]
[321116853,1711900342557,-682.15,0.00056712,120]
[321116854,1711900342567,-1065.68,0.00056712,120]
[321116855,1711900342577,-500.0,0.00056712,120]
[321116856,1711900342587,-3149.36,0.00056712,120]
[321116857,1711900342597,-2930.26,0.00056712,120]
[321116858,1711900342608,-384.94,0.00056712,120]
[321116859,1711900342620,-500.0,0.00056712,120]
[321116860,1711900342631,-696.26,0.00056712,120]
[321116861,1711900342643,-500.0,0.00056712,120]
[321116862,1711900342654,-500.0,0.00056712,120]
[321116863,1711900342665,-1509.76,0.00056712,120]
[321116864,1711900342676,-515.16,0.00056712,120]
[321116865,1711900342687,-500.0,0.00056712,120]
[321116866,1711900342698,-500.0,0.00056712,120]
[321116867,1711900342709,-4982.8,0.00056712,120]
[321116868,1711900342719,-717.55,0.00056712,120]
[321116869,1711900342731,-2406.23,0.00056712,120]
[321116870,1711900342741,-500.0,0.00056712,120]
[321116871,1711900342751,-5346.73,0.00056712,120]
[321116872,1711900342761,-500.0,0.00056712,120]
[321116873,1711900342771,-688.17,0.00056712,120]
[321116874,1711900342780,-752.11,0.00056712,120]
[321116875,1711900342790,-3295.3,0.00056712,120]
[321116876,1711900342799,-551.95,0.00056712,120]
[321116877,1711900342809,-1648.61,0.00056712,120]
[321116878,1711900342819,-500.0,0.00056712,120]
[321116879,1711900342828,-716.5,0.00056712,120]
[321116880,1711900342838,-500.0,0.00056712,120]
[321116881,1711900342847,-694.07,0.00056712,120]
[321116882,1711900342856,-615.79,0.00056712,120]
[321116883,1711900342865,-883.93,0.00056712,120]
[321116884,1711900342875,-500.0,0.00056712,120]
[321116885,1711900342884,-500.0,0.00056712,120]
[321116886,1711900342894,-3973.68,0.00056712,120]
[321116887,1711900342903,-1150.28,0.00056712,120]
[321116888,1711900342933,-1646.9,0.00056712,120]
[321116889,1711900342963,-1225.53,0.00056712,120]
[321116890,1711900342973,-2159.97,0.00056712,120]
[321116891,1711900342983,-477.23,0.00056712,120]
[321116892,1711900342993,-500.0,0.00056712,120]
[321116893,1711900343002,-994.44,0.00056712,120]
[321116894,1711900343012,-500.0,0.00056712,120]
[321116895,1711900343022,-500.0,0.00056712,120]
[321116896,1711900343032,-1115.67,0.00056712,120]
[321116897,1711900343041,-500.0,0.00056712,120]
[321116898,1711900343051,-4641.87,0.00056712,120]
[321116899,1711900343062,-500.0,0.00056712,120]
[321116900,1711900343072,-8787.96,0.00056712,120]
[321116901,1711900343081,-500.0,0.00056712,120]
[321116902,1711900343091,-500.0,0.00056712,120]
[321116903,1711900343100,-500.0,0.00056712,120]
[321116904,1711900343110,-1194.34,0.00056712,120]
[321116905,1711900343120,-500.0,0.00056712,120]
[321116906,1711900343130,-500.0,0.00056712,120]
[321116907,1711900343140,-500.0,0.00056712,120]
[321116908,1711900343151,-752.64,0.00056712,120]
[321116909,1711900343161,-500.0,0.00056712,120]
[321116910,1711900343170,-3930.82,0.00056712,120]
[321116911,1711900343180,-1715.44,0.00056712,120]
[321116912,1711900343190,-7337.25,0.00056712,120]
[321116913,1711900343199,-500.0,0.00056712,120]
[321116914,1711900343209,-500.0,0.00056712,120]
[321116915,1711900343218,-1000.0,0.00056712,120]
[321116916,1711900343227,-1001.76,0.00056712,120]
[321116917,1711900343237,-1183.78,0.00056712,120]
[321116918,1711900343247,-787.48,0.00056712,120]
[321116919,1711900343257,-939.48,0.00056712,120]
[321116920,1711900343266,-596.63,0.00056712,120]
[321116921,1711900343278,-151.0,0.00056712,120]
[321116922,1711900343291,-500.0,0.00056712,120]
[321116923,1711900343301,-602.91,0.00056712,120]
[321116924,1711900343313,-500.0,0.00056712,120]
[321116925,1711900343324,-2310.25,0.00056712,120]
[321116926,1711900343334,-6224.16,0.00056712,120]
[321116927,1711900343346,-1425.94,0.00056712,120]
[321116928,1711900343357,-500.0,0.00056712,120]
[321116929,1711900343368,-520.6,0.00056712,120]
[321116930,1711900343378,-1026.37,0.00056712,120]
[321116931,1711900343389,-1747.53,0.00056712,120]
[321116932,1711900343400,-151.0,0.00056712,120]
[321116933,1711900343410,-1299.9,0.00056712,120]
[321116934,1711900343421,-6493.36,0.00056712,120]
[321116935,1711900343432,-500.0,0.00056712,120]
[321116936,1711900343444,-703.93,0.00056712,120]
[321116937,1711900343454,-500.0,0.00056712,120]
[321116938,1711900343465,-569.5,0.00056712,120]
[321116939,1711900343475,-534.81,0.00056712,120]
[321116940,1711900343485,-500.0,0.00056712,120]
[321116941,1711900343495,-670.0,0.00056712,120]
[321116942,1711900343505,-151.0,0.00056712,120]
[321116943,1711900343515,-1379.27,0.00056712,120]
[321116944,1711900343525,-833.15,0.00056712,120]
[321116945,1711900343535,-4176.95,0.00056712,120]
[321116946,1711900343545,-999.52,0.00056725,2]
[321116947,1711900343554,-151.0,0.00056767,120]
[321116948,1711900343564,-458.0,0.00056855,120]
[321116949,1711900343573,-963.0,0.00056855,120]
[321116950,1711900343582,-2423.0,0.00056855,120]
[321116951,1711900343591,-1383.0,0.00056855,120]
[321116952,1711900343601,-538.0,0.00056855,120]
[321116953,1711900343610,-1254.0,0.00056855,120]
[321116954,1711900343619,-1226.0,0.00056855,120]
[321116955,1711900343628,-432.0,0.00056855,120]
[321116956,1711900343638,-277.0,0.00056855,120]
[321116957,1711900343647,-1269.0,0.00056855,120]
[321116958,1711900343657,-803.0,0.00056855,120]
[321116959,1711900343666,-605.0,0.00056855,120]
[321116960,1711900343676,-2985.0,0.00056855,120]
[321116961,1711900343685,-396.0,0.00056855,120]
[321116962,1711900343695,-1139.0,0.00056855,120]
[321116963,1711900343704,-1464.0,0.00056855,120]
[321116964,1711900343713,-150.0,0.00056855,120]
[321116965,1711900343722,-150.0,0.00056855,120]
[321116966,1711900343734,-1629.0,0.00056855,120]
[321116967,1711900343744,-2427.0,0.00056855,120]
[321116968,1711900343754,-150.0,0.00056855,120]
[321116969,1711900343763,-2453.0,0.00056855,120]
[321116970,1711900343772,-1178.0,0.00056855,120]
[321116971,1711900343781,-3182.175,0.00056855,120]
[321116972,1711900343791,-3206.0,0.00056855,120]
[321116973,1711900343800,-1037.0,0.00056855,120]
[321116974,1711900343809,-151.22606623,0.00056886,120]
[321116975,1711900343819,-206.674619,0.00056951,120]
[321116976,1711900343828,-221.99557909,0.00056982,120]
[321116977,1711900343837,-1239.43,0.00056986,120]
[321116978,1711900343847,-500.0,0.00056986,120]
[321116979,1711900343857,-664.59,0.00056986,2]
[321116980,1711900343866,-500.0,0.00056986,120]
[321116981,1711900343876,-500.0,0.00056986,120]
[321116982,1711900343885,-500.0,0.00056986,120]
[321116983,1711900343894,-500.0,0.00056986,120]
[321116984,1711900343903,-500.0,0.00056986,120]
[321116985,1711900343912,-500.0,0.00056986,120]
[321116986,1711900343922,-500.0,0.00056986,120]
[321116987,1711900343931,-500.0,0.00056986,120]
[321116988,1711900343940,-500.0,0.00056986,120]
[321116989,1711900343950,-500.0,0.00056986,120]
[321116990,1711900343958,-527.64,0.00056986,120]
[321116991,1711900343967,-500.0,0.00056986,120]
[321116992,1711900343976,-500.0,0.00056986,120]
[321116993,1711900343986,-500.0,0.00056986,120]
[321116994,1711900343995,-500.0,0.00056986,120]
[321116995,1711900344004,-500.0,0.00056986,120]
[321116996,1711900344013,-500.0,0.00056986,120]
[321116997,1711900344022,-500.0,0.00056986,120]
[321116998,1711900344031,-500.0,0.00056986,120]
[321116999,1711900344040,-500.0,0.00056986,120]
[321117000,1711900344049,-500.0,0.00056986,120]
[321117001,1711900344058,-500.0,0.00056986,120]
[321117002,1711900344067,-500.0,0.00056986,120]
[321117003,1711900344076,-500.0,0.00056986,120]
[321117004,1711900344085,-500.0,0.00056986,120]
[321117005,1711900344094,-500.0,0.00056986,120]
[321117006,1711900344103,-500.0,0.00056986,120]
[321117007,1711900344112,-500.0,0.00056986,120]
[321117008,1711900344121,-500.0,0.00056986,120]
[321117009,1711900344130,-500.0,0.00056986,120]
[321117010,1711900344140,-401.48217119,0.00056986,120]
[321117011,1711900344149,-500.0,0.00056986,120]
[321117012,1711900344158,-350.64,0.00056986,120]
[321117013,1711900344168,-500.0,0.00056986,120]
[321117014,1711900344177,-500.0,0.00056986,120]
[321117015,1711900344186,-500.0,0.00056986,120]
[321117016,1711900344195,-500.0,0.00056986,120]
[321117017,1711900344292,-500.0,0.00056986,120]
[321117018,1711900344301,-500.0,0.00056986,120]
[321117019,1711900344310,-500.0,0.00056986,120]
[321117020,1711900344320,-500.0,0.00056986,120]
[321117021,1711900344329,-500.0,0.00056986,120]
[321117022,1711900344338,-500.0,0.00056986,120]
[321117023,1711900344347,-500.0,0.00056986,120]
[321117024,1711900344356,-500.0,0.00056986,120]
[321117025,1711900344367,-500.0,0.00056986,120]
[321117026,1711900344376,-500.0,0.00056986,120]
[321117027,1711900344385,-500.0,0.00056986,120]
[321117028,1711900344394,-1476.31,0.00056986,120]
[321117029,1711900344403,-500.0,0.00056986,120]
[321117030,1711900344412,-151.0,0.00056986,120]
[321117031,1711900344422,-500.0,0.00056986,120]
[321117032,1711900344431,-500.0,0.00056986,120]
[321117033,1711900344440,-500.0,0.00056986,120]
[321117034,1711900344449,-500.0,0.00056986,120]
[321117035,1711900344458,-500.0,0.00056986,120]
[321117036,1711900344467,-536.73,0.00056986,120]
[321117037,1711900344476,-794.23,0.00056986,120]
[321117038,1711900344485,-500.0,0.00056986,120]
[321117039,1711900344494,-500.0,0.00056986,120]
[321117040,1711900344503,-500.0,0.00056986,60]
[321117041,1711900344512,-500.0,0.00056986,120]
[321117042,1711900344521,-500.0,0.00056986,120]
[321117043,1711900344531,-500.0,0.00056986,120]
[321117044,1711900344540,-500.0,0.00056986,120]
[321117045,1711900344549,-500.0,0.00056986,120]
[321117046,1711900344558,-726.96,0.00056986,120]
[321117047,1711900344567,-500.0,0.00056986,50]
[321117048,1711900344576,-500.0,0.00056986,120]
[321117049,1711900344585,-500.0,0.00056986,120]
[321117050,1711900344594,-500.0,0.00056986,120]
[321117051,1711900344603,-753.06,0.00056986,120]
[321117052,1711900344612,-500.0,0.00056986,120]
[321117053,1711900344621,-500.0,0.00056986,120]
[321117054,1711900344630,-741.95,0.00056986,120]
[321117055,1711900344639,-500.0,0.00056986,120]
[321117056,1711900344648,-500.0,0.00056986,120]
[321117057,1711900344657,-500.0,0.00056986,120]
[321117058,1711900344667,-357.09,0.00056986,120]
[321117059,1711900344676,-500.0,0.00056986,120]
[321117060,1711900344685,-500.0,0.00056986,120]
[321117061,1711900344694,-500.0,0.00056986,120]
[321117062,1711900344703,-500.0,0.00056986,120]
[321117063,1711900344713,-500.0,0.00056986,120]
[321117064,1711900344722,-500.0,0.00056986,120]
[321117065,1711900344732,-500.0,0.00056986,120]
[321117066,1711900344741,-500.0,0.00056986,120]
[321117067,1711900344749,-500.0,0.00056986,120]
[321117068,1711900344759,-796.42,0.00056986,120]
[321117069,1711900344768,-887.89,0.00056986,120]
[321117070,1711900344778,-500.0,0.00056986,120]
[321117071,1711900344787,-556.88,0.00056986,120]
[321117072,1711900344796,-646.48,0.00056986,120]
[321117073,1711900344805,-500.0,0.00056986,120]
[321117074,1711900344816,-500.0,0.00056986,120]
[321117075,1711900344825,-500.0,0.00056986,120]
[321117076,1711900344836,-572.75067815,0.00056986,120]
[321117077,1711900344845,-510.99,0.00056986,120]
[321117078,1711900344854,-500.0,0.00056986,120]
[321117079,1711900344864,-500.0,0.00056986,120]
[321117080,1711900344873,-849.94,0.00056986,120]
[321117081,1711900344882,-500.0,0.00056986,120]
[321117082,1711900344892,-500.0,0.00056986,120]
[321117083,1711900344900,-500.0,0.00056986,120]
[321117084,1711900344910,-500.0,0.00056986,120]
[321117085,1711900344919,-500.0,0.00056986,120]
[321117086,1711900344928,-799.12,0.00056986,120]
[321117087,1711900344937,-500.0,0.00056986,120]
[321117088,1711900344946,-500.0,0.00056986,120]
[321117089,1711900344956,-500.0,0.00056986,120]
[321117090,1711900344965,-518.96791817,0.00056986,120]
[321117091,1711900344975,-500.0,0.00056986,120]
[321117092,1711900344984,-500.0,0.00056986,120]
[321117093,1711900344994,-500.0,0.00056986,120]
[321117094,1711900345004,-500.0,0.00056986,120]
[321117095,1711900345014,-500.0,0.00056986,120]
[321117096,1711900345023,-620.95,0.00056986,120]
[321117097,1711900345033,-883.96,0.00056986,120]
[321117098,1711900345043,-500.0,0.00056986,120]
[321117099,1711900345052,-500.0,0.00056986,120]
[321117100,1711900345062,-815.7,0.00056986,120]
[321117101,1711900345072,-500.0,0.00056986,120]
[321117102,1711900345082,-804.07,0.00056986,120]
[321117103,1711900345092,-635.28,0.00056986,120]
[321117104,1711900345102,-500.0,0.00056986,120]
[321117105,1711900345111,-500.0,0.00056986,120]
[321117106,1711900345121,-500.0,0.00056986,120]
[321117107,1711900345131,-959.19,0.00056986,120]
[321117108,1711900345140,-683.74,0.00056986,120]
[321117109,1711900345149,-500.0,0.00056986,120]
[321117110,1711900345159,-1061.5,0.00056986,120]
[321117111,1711900345168,-500.0,0.00056986,120]
[321117112,1711900345178,-736.85,0.00056986,120]
[321117113,1711900345187,-500.0,0.00056986,120]
[321117114,1711900345197,-500.0,0.00056986,120]
[321117115,1711900345206,-500.0,0.00056986,120]
[321117116,1711900345215,-500.0,0.00056986,120]
[321117117,1711900345224,-500.0,0.00056986,120]
[321117118,1711900345234,-592.16,0.00056986,120]
[321117119,1711900345243,-500.0,0.00056986,120]
[321117120,1711900345252,-500.0,0.00056986,120]
[321117121,1711900345261,-500.0,0.00056986,120]
[321117122,1711900345272,-571.87,0.00056986,120]
[321117123,1711900345281,-500.0,0.00056986,16]
[321117124,1711900345293,-781.99,0.00056986,120]
[321117125,1711900345303,-500.0,0.00056986,120]
[321117126,1711900345312,-828.46,0.00056986,120]
[321117127,1711900345321,-500.0,0.00056986,120]
[321117128,1711900345331,-500.0,0.00056986,120]
[321117129,1711900345341,-500.0,0.00056986,120]
[321117130,1711900345349,-500.0,0.00056986,120]
[321117131,1711900345359,-500.0,0.00056986,120]
[321117132,1711900345369,-500.0,0.00056986,120]
[321117133,1711900345378,-519.19,0.00056986,120]
[321117134,1711900345387,-680.37,0.00056986,120]
[321117135,1711900345397,-500.0,0.00056986,120]
[321117136,1711900345406,-735.71,0.00056986,120]
[321117137,1711900345416,-500.0,0.00056986,120]
[321117138,1711900345424,-500.0,0.00056986,120]
[321117139,1711900345433,-533.52930091,0.00056986,120]
[321117140,1711900345442,-648.33,0.00056986,120]
[321117141,1711900345452,-500.0,0.00056986,120]
[321117142,1711900345461,-500.0,0.00056986,120]
[321117143,1711900345470,-500.0,0.00056986,120]
[321117144,1711900345480,-680.7,0.00056986,120]
[321117145,1711900345489,-500.0,0.00056986,120]
[321117146,1711900345499,-500.0,0.00056986,120]
[321117147,1711900345508,-500.0,0.00056986,120]
[321117148,1711900345517,-1067.63,0.00056986,120]
[321117149,1711900345526,-617.46,0.00056986,120]
[321117150,1711900345536,-500.0,0.00056986,120]
[321117151,1711900345545,-500.0,0.00056986,120]
[321117152,1711900345554,-500.0,0.00056986,120]
[321117153,1711900345564,-615.17,0.00056986,120]
[321117154,1711900345573,-500.0,0.00056986,120]
[321117155,1711900345583,-753.46,0.00056986,120]
[321117156,1711900345592,-671.0,0.00056986,120]
[321117157,1711900345602,-742.98,0.00056986,120]
[321117158,1711900345611,-500.0,0.00056986,120]
[321117159,1711900345620,-579.39,0.00056986,120]
[321117160,1711900345629,-500.0,0.00056986,120]
[321117161,1711900345638,-759.51,0.00056986,120]
[321117162,1711900345647,-500.0,0.00056986,120]
[321117163,1711900345655,-169.624388,0.00056986,120]
[321117164,1711900345666,-169.624388,0.00056986,120]
[321117165,1711900345675,-307.543145,0.00056986,120]
[321117166,1711900345684,-307.543145,0.00056986,120]
[321117167,1711900345694,-500.0,0.00056986,120]
[321117168,1711900345703,-500.0,0.00056986,7]
[321117169,1711900345712,-500.0,0.00056986,120]
[321117170,1711900345722,-500.0,0.00056986,120]
[321117171,1711900345731,-500.0,0.00056986,120]
[321117172,1711900345741,-730.83,0.00056986,30]
[321117173,1711900345751,-562.36,0.00056986,120]
[321117174,1711900345761,-500.0,0.00056986,120]
[321117175,1711900345770,-151.0,0.00056986,120]
[321117176,1711900345780,-500.0,0.00056986,120]
[321117177,1711900345790,-500.0,0.00056986,120]
[321117178,1711900345799,-151.0,0.00056986,120]
[321117179,1711900345809,-500.0,0.00056986,120]
[321117180,1711900345819,-591.57,0.00056986,120]
[321117181,1711900345831,-500.0,0.00056986,120]
[321117182,1711900345840,-754.29,0.00056986,120]
[321117183,1711900345849,-500.0,0.00056986,120]
[321117184,1711900345858,-500.0,0.00056986,120]
[321117185,1711900345867,-544.56,0.00056986,120]
[321117186,1711900345876,-500.0,0.00056986,120]
[321117187,1711900345886,-563.24,0.00056986,120]
[321117188,1711900345896,-500.0,0.00056986,120]
[321117189,1711900345906,-500.0,0.00056986,120]
[321117190,1711900345916,-500.0,0.00056986,120]
[321117191,1711900345926,-500.0,0.00056986,120]
[321117192,1711900345935,-662.41,0.00056986,120]
[321117193,1711900345945,-995.44,0.00056986,120]
[321117194,1711900345955,-500.0,0.00056986,120]
[321117195,1711900345965,-500.0,0.00056986,120]
[321117196,1711900345975,-500.0,0.00056986,120]
[321117197,1711900345984,-629.64,0.00056986,120]
[321117198,1711900345994,-500.0,0.00056986,120]
[321117199,1711900346004,-500.0,0.00056986,120]
[321117200,1711900346013,-531.25,0.00056986,120]
[321117201,1711900346022,-500.0,0.00056986,30]
[321117202,1711900346031,-543.59,0.00056986,120]
[321117203,1711900346041,-500.0,0.00056986,120]
[321117204,1711900346050,-761.88,0.00056986,120]
[321117205,1711900346061,-500.0,0.00056986,120]
[321117206,1711900346070,-481.25,0.00056986,120]
[321117207,1711900346079,-711.25,0.00056986,120]
[321117208,1711900346088,-646.54,0.00056986,120]
[321117209,1711900346098,-1048.22,0.00056986,120]
[321117210,1711900346107,-500.0,0.00056986,120]
[321117211,1711900346117,-500.0,0.00056986,120]
[321117212,1711900346126,-475.17,0.00056986,120]
[321117213,1711900346136,-500.0,0.00056986,120]
[321117214,1711900346145,-500.0,0.00056986,120]
[321117215,1711900346154,-500.0,0.00056986,120]
[321117216,1711900346164,-500.0,0.00056986,120]
[321117217,1711900346174,-844.59,0.00056986,120]
[321117218,1711900346184,-519.79,0.00056986,120]
[321117219,1711900346193,-729.88,0.00056986,120]